bitfinex/quotes_BTCUSD_20250518
["timestamp","ask_amount","ask_price","bid_price","bid_amount"]
[1747529597629,0.46682651,103410.0,103400.0,0.21235484]
[1747529597860,0.45715646,103410.0,103400.0,0.21235484]
[1747529598066,0.45515646,103410.0,103400.0,0.21235484]
[1747529599735,0.45515646,103410.0,103400.0,0.00926017]
[1747529607421,0.27367646,103410.0,103400.0,0.00926017]
[1747529608352,0.45479646,103410.0,103400.0,0.00926017]
[1747529609373,0.45479646,103410.0,103400.0,0.02080749]
[1747529610763,0.45471646,103410.0,103400.0,0.02080749]
[1747529611200,0.46477725,103410.0,103400.0,0.02080749]
[1747529612087,0.45471646,103410.0,103400.0,0.02080749]
[1747529612509,0.45471646,103410.0,103400.0,0.00926017]
[1747529615064,0.58455592,103410.0,103400.0,0.00926017]
[1747529615274,0.65963748,103410.0,103400.0,0.00926017]
[1747529615530,1.00958729,103410.0,103400.0,0.00926017]
[1747529615941,1.10689669,103410.0,103400.0,0.00926017]
[1747529616156,1.03181513,103410.0,103400.0,0.00926017]
[1747529616376,0.72093567,103410.0,103400.0,0.00926017]
[1747529616609,1.08345567,103410.0,103400.0,0.00926017]
[1747529617734,1.07358586,103410.0,103400.0,0.00926017]
[1747529618186,0.89222586,103410.0,103400.0,0.00926017]
[1747529620337,1.11937472,103410.0,103400.0,0.00926017]
[1747529622394,1.12911745,103410.0,103400.0,0.00926017]
[1747529625441,0.21278586,103390.0,103380.0,0.02694375]
[1747529625648,0.42482586,103390.0,103380.0,0.02694375]
[1747529626051,0.40962586,103390.0,103380.0,0.02694375]
[1747529626634,0.40962586,103390.0,103380.0,0.02377764]
[1747529626847,0.40962586,103390.0,103380.0,0.02677764]
[1747529630463,0.42512586,103390.0,103380.0,0.02677764]
[1747529634843,0.55496532,103390.0,103380.0,0.02677764]
[1747529635050,0.42512586,103390.0,103380.0,0.02677764]
[1747529635550,0.42512586,103390.0,103380.0,0.02377764]
[1747529635794,0.42512586,103390.0,103380.0,0.02177764]
[1747529635994,0.42512586,103390.0,103380.0,0.02277764]
[1747529636167,0.64793785,103390.0,103380.0,0.02277764]
[1747529636793,1.08524725,103390.0,103380.0,0.02277764]
[1747529636995,1.08524725,103390.0,103380.0,0.02177764]
[1747529637215,1.77984725,103390.0,103380.0,0.02177764]
[1747529637423,6.67004071,103390.0,103380.0,0.02177764]
[1747529637626,6.67004071,103390.0,103380.0,0.02077764]
[1747529637815,0.53346101,103380.0,103360.0,0.01154732]
[1747529637961,0.72673425,103370.0,103360.0,0.01163924]
[1747529638153,0.72647298,103370.0,103360.0,0.01163924]
[1747529640901,0.59663352,103370.0,103360.0,0.01163924]
[1747529641028,0.59663352,103370.0,103360.0,9.192e-05]
[1747529641229,0.93663352,103370.0,103360.0,9.192e-05]
[1747529641431,1.13452693,103370.0,103360.0,9.192e-05]
[1747529642867,1.64967633,103370.0,103360.0,9.192e-05]
[1747529646139,2.34427633,103370.0,103360.0,9.192e-05]
[1747529648243,2.34627633,103370.0,103360.0,9.192e-05]
[1747529648450,2.34727633,103370.0,103360.0,9.192e-05]
[1747529651890,2.27922238,103370.0,103360.0,9.192e-05]
[1747529653444,1.78710292,103370.0,103360.0,9.192e-05]
[1747529653707,2.03693352,103370.0,103360.0,9.192e-05]
[1747529653971,2.03705352,103370.0,103360.0,9.192e-05]
[1747529654634,1.25645352,103370.0,103360.0,9.192e-05]
[1747529654843,1.43805352,103370.0,103360.0,9.192e-05]
[1747529655449,1.45305352,103370.0,103360.0,9.192e-05]
[1747529658582,1.43805352,103370.0,103360.0,9.192e-05]
[1747529659089,1.45305352,103370.0,103360.0,9.192e-05]
[1747529660815,1.27145352,103370.0,103360.0,9.192e-05]
[1747529661029,1.45285352,103370.0,103360.0,9.192e-05]
[1747529661679,1.43785352,103370.0,103360.0,9.192e-05]
[1747529663756,1.45285352,103370.0,103360.0,0.00931792]
[1747529667649,1.43785352,103370.0,103360.0,0.00931792]
[1747529669476,1.61925352,103370.0,103360.0,0.00931792]
[1747529671015,1.63565352,103370.0,103360.0,0.00931792]
[1747529672803,1.61925352,103370.0,103360.0,0.00931792]
[1747529673013,0.20615352,103370.0,103360.0,0.00931792]
[1747529673221,0.38759352,103370.0,103360.0,0.03981792]
[1747529673845,0.20615352,103370.0,103360.0,0.03981792]
[1747529674093,0.38455352,103370.0,103360.0,0.03981792]
[1747529674323,0.36459298,103370.0,103360.0,0.00931792]
[1747529674539,0.59807352,103370.0,103360.0,0.02086524]
[1747529674983,0.56679352,103370.0,103360.0,0.02086524]
[1747529675408,0.58239352,103370.0,103360.0,0.02086524]
[1747529675630,0.21875352,103370.0,103360.0,0.02086524]
[1747529675833,0.56695352,103370.0,103360.0,0.02086524]
[1747529676048,0.20315352,103370.0,103360.0,0.02086524]
[1747529676252,0.56711352,103370.0,103360.0,0.02086524]
[1747529676464,0.56911352,103370.0,103360.0,0.02086524]
[1747529676726,0.56811352,103370.0,103360.0,0.02086524]
[1747529676924,0.57011352,103370.0,103360.0,0.02086524]
[1747529677335,0.56911352,103370.0,103360.0,0.02086524]
[1747529677516,0.57011352,103370.0,103360.0,0.02086524]
[1747529677713,0.57011352,103370.0,103360.0,0.00931792]
[1747529678456,1.15167043,103370.0,103360.0,0.00931792]
[1747529678699,1.24897983,103370.0,103360.0,0.00931792]
[1747529680814,1.24897983,103370.0,103360.0,9.192e-05]
[1747529681316,1.31685052,103370.0,103360.0,9.192e-05]
[1747529685404,0.67566292,103370.0,103360.0,9.192e-05]
[1747529685608,1.03974292,103370.0,103360.0,9.192e-05]
[1747529685815,1.03970292,103370.0,103360.0,9.192e-05]
[1747529695588,0.85706292,103370.0,103360.0,9.192e-05]
[1747529695800,0.92587352,103370.0,103360.0,9.192e-05]
[1747529696605,0.94217352,103370.0,103360.0,9.192e-05]
[1747529705217,0.94217352,103370.0,103360.0,0.00933736]
[1747529705422,0.92587352,103370.0,103360.0,0.00933736]
[1747529705670,0.57015352,103370.0,103360.0,0.02503736]
[1747529706302,0.60225352,103370.0,103360.0,0.00933736]
[1747529706720,0.60117352,103370.0,103360.0,0.00933736]
[1747529706929,0.60017352,103370.0,103360.0,0.00933736]
[1747529707354,0.21895352,103370.0,103360.0,0.00933736]
[1747529707552,0.20315352,103370.0,103360.0,0.00933736]
[1747529707758,0.56799352,103370.0,103360.0,0.00933736]
[1747529708178,0.20315352,103370.0,103360.0,0.00933736]
[1747529708399,0.58375352,103370.0,103360.0,0.00933736]
[1747529712318,0.38543352,103370.0,103360.0,0.00933736]
[1747529712524,0.56783352,103370.0,103360.0,0.00933736]
[1747529714210,0.56791352,103370.0,103360.0,0.02583736]
[1747529714416,0.56791352,103370.0,103360.0,0.04133736]
[1747529715488,0.38567352,103370.0,103360.0,0.04133736]
[1747529717742,0.38567352,103370.0,103360.0,0.02583736]
[1747529718466,0.56238437,103370.0,103360.0,0.00933736]
[1747529718667,0.40087352,103370.0,103360.0,0.00933736]
[1747529719158,0.41717352,103370.0,103360.0,0.00933736]
[1747529719651,0.23465352,103370.0,103360.0,0.00933736]
[1747529719895,0.59921352,103370.0,103360.0,0.00933736]
[1747529722223,0.23465352,103370.0,103360.0,0.00933736]
[1747529722433,0.59897352,103370.0,103360.0,0.00933736]
[1747529727217,0.59897352,103370.0,103360.0,0.02533736]
[1747529727218,0.38531352,103370.0,103360.0,0.02533736]
[1747529727457,0.39498722,103370.0,103360.0,0.02533736]
[1747529727669,0.39498722,103370.0,103360.0,0.23413581]
[1747529727881,0.21282722,103370.0,103360.0,0.24381063]
[1747529728090,0.39498722,103370.0,103360.0,0.25348517]
[1747529728509,0.01934693,103370.0,103360.0,0.26315943]
[1747529728715,0.4240073,103370.0,103360.0,0.26320354]
[1747529728920,0.41433416,103370.0,103360.0,0.26320354]
[1747529729523,0.40466074,103370.0,103360.0,0.26320354]
[1747529729911,0.22085499,103370.0,103360.0,0.2728779]
[1747529730143,0.41433472,103370.0,103360.0,0.2728779]
[1747529730498,0.41433472,103370.0,103360.0,0.28442522]
[1747529730499,0.23217472,103370.0,103360.0,0.28442522]
[1747529734452,0.23217472,103370.0,103360.0,0.27475086]
[1747529734883,0.22250121,103370.0,103360.0,0.27475086]
[1747529736416,0.2128276,103370.0,103360.0,0.27475086]
[1747529736624,0.2128276,103370.0,103360.0,0.25945086]
[1747529736830,0.9186423,103390.0,103360.0,0.37255952]
[1747529737025,0.19199258,103380.0,103370.0,0.25340037]
[1747529737256,0.21133774,103380.0,103370.0,0.25340056]
[1747529737689,0.3911023,103390.0,103370.0,0.34103607]
[1747529737690,0.21861432,103390.0,103370.0,0.34103607]
[1747529737899,0.39510606,103390.0,103380.0,0.21823406]
[1747529738101,0.39510606,103390.0,103380.0,0.23757969]
[1747529738513,0.39510606,103390.0,103380.0,0.24725217]
[1747529738708,0.40477817,103390.0,103380.0,0.24725217]
[1747529738846,0.40481817,103390.0,103380.0,0.34456157]
[1747529739048,0.21137587,103390.0,103380.0,0.34456157]
[1747529739274,0.21337587,103390.0,103380.0,0.34456157]
[1747529739680,0.21433522,103390.0,103380.0,0.35380701]
[1747529739889,0.21433522,103390.0,103380.0,0.00924544]
[1747529739890,0.42960606,103390.0,103380.0,0.00924544]
[1747529740657,0.24728606,103390.0,103380.0,0.00924544]
[1747529741030,0.42980606,103390.0,103380.0,0.00924544]
[1747529741462,0.23118606,103390.0,103380.0,0.00924544]
[1747529742081,0.41394606,103390.0,103380.0,0.00924544]
[1747529742290,0.42017432,103390.0,103380.0,0.00924544]
[1747529743310,0.23741432,103390.0,103380.0,0.00924544]
[1747529743449,0.42029432,103390.0,103380.0,0.00924544]
[1747529743854,0.38899432,103390.0,103380.0,0.22205245]
[1747529744066,0.38899432,103390.0,103380.0,0.23755245]
[1747529744266,0.38703432,103390.0,103380.0,0.23755245]
[1747529744462,0.38599432,103390.0,103380.0,0.23755245]
[1747529744660,0.38799432,103390.0,103380.0,0.23755245]
[1747529744911,0.38699432,103390.0,103380.0,0.24722531]
[1747529745225,0.38599432,103390.0,103380.0,0.24722531]
[1747529746360,0.20311432,103390.0,103380.0,0.24722531]
[1747529746574,0.38587432,103390.0,103380.0,0.24722531]
[1747529746783,0.38587432,103390.0,103380.0,0.26657075]
[1747529747443,0.20311432,103390.0,103380.0,0.26657075]
[1747529747657,0.38583432,103390.0,103380.0,0.26657075]
[1747529747863,0.38583432,103390.0,103380.0,0.24139808]
[1747529749111,0.38583432,103390.0,103380.0,0.22205245]
[1747529749315,0.3917623,103390.0,103380.0,0.22205245]
[1747529749519,0.4076623,103390.0,103380.0,0.00924544]
[1747529749933,0.3761223,103390.0,103380.0,0.2123795]
[1747529750110,0.3761223,103390.0,103380.0,0.23755227]
[1747529750355,0.38579432,103390.0,103380.0,0.24722494]
[1747529750559,0.39546606,103390.0,103380.0,0.25689742]
[1747529750764,0.22243572,103400.0,103390.0,0.21278606]
[1747529750949,0.22243572,103400.0,103390.0,0.21278624]
[1747529750950,0.41482689,103400.0,103390.0,0.21278624]
[1747529751326,0.41502689,103400.0,103390.0,0.21278624]
[1747529751531,0.40535646,103400.0,103390.0,0.21278624]
[1747529751731,0.42145646,103400.0,103390.0,0.22203168]
[1747529751956,0.42245646,103400.0,103390.0,0.22203168]
[1747529752373,0.42445646,103400.0,103390.0,0.22203168]
[1747529754607,0.42988575,103400.0,103390.0,0.00924544]
[1747529759062,0.23186575,103400.0,103390.0,0.01891755]
[1747529759272,0.0191,103400.0,103390.0,0.01891755]
[1747529759474,0.03201193,103400.0,103390.0,0.35508447]
[1747529759683,0.04194428,103400.0,103390.0,0.35508456]
[1747529759898,0.04194428,103400.0,103390.0,0.36475602]
[1747529760111,0.21602683,103400.0,103390.0,0.12295484]
[1747529760360,0.20609467,103400.0,103390.0,0.11810216]
[1747529760566,0.21889467,103400.0,103390.0,0.12777427]
[1747529760776,0.21889467,103400.0,103390.0,0.32121657]
[1747529761202,0.21889467,103400.0,103390.0,0.33088859]
[1747529762395,0.21889467,103400.0,103390.0,0.34056051]
[1747529764417,0.21889467,103400.0,103390.0,0.33088859]
[1747529764618,0.21889467,103400.0,103390.0,0.34056051]
[1747529765183,0.21889467,103400.0,103390.0,0.02079276]
[1747529765419,0.23549467,103400.0,103390.0,0.02079276]
[1747529768387,0.23549467,103400.0,103390.0,0.00924544]
[1747529784135,0.41809467,103400.0,103390.0,0.00924544]
[1747529784920,0.41805467,103400.0,103390.0,0.00924544]
[1747529797092,0.41805467,103400.0,103390.0,0.02079276]
[1747529800493,0.41805467,103400.0,103390.0,0.00924544]
[1747529807960,0.41765467,103400.0,103390.0,0.00924544]
[1747529817055,0.41765467,103400.0,103390.0,0.00851778]
[1747529817457,0.98468355,103400.0,103390.0,0.00851778]
[1747529817882,1.21171243,103400.0,103390.0,0.00851778]
[1747529819491,5.97206643,103400.0,103390.0,0.00851778]
[1747529819859,0.24420645,103380.0,103370.0,0.02694375]
[1747529820137,0.60912645,103380.0,103370.0,0.02694375]
[1747529820756,0.20315352,103370.0,103360.0,0.08915486]
[1747529821008,0.20315352,103370.0,103360.0,0.10505486]
[1747529821637,0.20315352,103370.0,103360.0,0.02753924]
[1747529821840,0.38559352,103370.0,103360.0,0.02753924]
[1747529823668,0.59360037,103370.0,103360.0,0.01163924]
[1747529823851,0.40179352,103370.0,103360.0,0.01163924]
[1747529824051,0.38559352,103370.0,103360.0,0.01163924]
[1747529824264,0.40179352,103370.0,103360.0,0.01163924]
[1747529826383,0.40179352,103370.0,103360.0,9.192e-05]
[1747529827117,0.20315352,103370.0,103360.0,9.192e-05]
[1747529827329,0.38579352,103370.0,103360.0,0.03209192]
[1747529828169,0.38583352,103370.0,103360.0,0.03209192]
[1747529828376,0.20315352,103370.0,103360.0,0.03209192]
[1747529828611,0.38583352,103370.0,103360.0,0.03209192]
[1747529829639,0.38583352,103370.0,103360.0,0.04131438]
[1747529831980,0.03869032,103380.0,103370.0,0.25560092]
[1747529832190,0.39530668,103390.0,103380.0,0.0331]
[1747529832416,0.00967174,103390.0,103380.0,0.22656101]
[1747529832617,0.41476944,103390.0,103380.0,0.24590645]
[1747529832823,0.40513798,103390.0,103380.0,0.22656101]
[1747529833055,0.21278624,103390.0,103380.0,0.21973406]
[1747529833234,0.38583441,103390.0,103380.0,0.0166]
[1747529833710,0.38619441,103390.0,103380.0,0.22940682]
[1747529833900,0.20311441,103390.0,103380.0,0.22940682]
[1747529834137,0.38619441,103390.0,103380.0,0.21973396]
[1747529834265,0.3765223,103390.0,103380.0,0.0166]
[1747529834478,0.3765223,103390.0,103380.0,0.21928347]
[1747529834723,0.3765223,103390.0,103380.0,0.23862928]
[1747529834922,0.3765223,103390.0,103380.0,0.02582246]
[1747529835321,0.3765223,103390.0,103380.0,0.03549551]
[1747529836652,0.3765223,103390.0,103380.0,0.22895652]
[1747529837043,0.3765223,103390.0,103380.0,0.23862947]
[1747529839853,0.3765223,103390.0,103380.0,0.24830233]
[1747529842422,0.3765223,103390.0,103380.0,0.2579751]
[1747529842535,0.1934423,103390.0,103380.0,0.2579751]
[1747529842741,0.37634357,103390.0,103380.0,0.2579751]
[1747529842938,0.3760823,103390.0,103380.0,0.2579751]
[1747529844783,0.3760823,103390.0,103380.0,0.26764777]
[1747529844983,0.00967192,103390.0,103380.0,0.26764777]
[1747529845184,0.21157446,103390.0,103380.0,0.2737735]
[1747529845612,0.21939467,103400.0,103390.0,0.22245779]
[1747529845777,0.41162547,103400.0,103390.0,0.21278624]
[1747529845980,0.40195467,103400.0,103390.0,0.21278643]
[1747529846462,0.39228359,103400.0,103390.0,0.21278643]
[1747529846861,0.39228359,103400.0,103380.0,0.25442806]
[1747529847066,0.40838359,103400.0,103380.0,0.25442806]
[1747529847266,0.40838359,103400.0,103390.0,0.00922246]
[1747529850235,0.65794141,103400.0,103390.0,0.00922246]
[1747529851414,0.20311422,103390.0,103380.0,0.01154732]
[1747529851629,0.23381422,103390.0,103380.0,0.01154732]
[1747529851969,0.41645422,103390.0,103380.0,0.01154732]
[1747529853145,0.41645422,103390.0,103370.0,0.25724438]
[1747529853146,0.19346101,103380.0,103370.0,0.24372176]
[1747529853474,0.19372228,103380.0,103370.0,0.24372176]
[1747529853883,0.21306753,103380.0,103370.0,0.23404815]
[1747529854078,0.21280626,103380.0,103370.0,0.24325788]
[1747529854841,0.22247874,103380.0,103370.0,0.24325788]
[1747529855669,0.21280654,103380.0,103370.0,0.24325788]
[1747529855874,0.21280654,103380.0,103370.0,0.25865431]
[1747529859013,0.21280654,103380.0,103370.0,0.24710699]
[1747529860363,0.21280654,103380.0,103370.0,0.2567806]
[1747529863260,0.22247931,103380.0,103370.0,0.2567806]
[1747529864035,0.22247931,103380.0,103370.0,0.24710699]
[1747529864438,0.22247931,103380.0,103370.0,0.2567806]
[1747529864940,0.22247931,103380.0,103370.0,0.26645411]
[1747529865410,0.22247931,103380.0,103370.0,0.26645355]
[1747529866947,0.22247931,103380.0,103370.0,0.25678013]
[1747529867995,0.22247931,103380.0,103370.0,0.26645355]
[1747529870559,0.23797931,103380.0,103370.0,0.24710652]
[1747529870717,0.23797931,103380.0,103370.0,0.25677994]
[1747529871126,0.41957931,103380.0,103370.0,0.25677994]
[1747529874152,0.41957931,103380.0,103370.0,0.23743301]
[1747529874388,0.43537931,103380.0,103370.0,0.24710652]
[1747529874757,0.43537931,103380.0,103370.0,0.25677994]
[1747529879658,0.43537931,103380.0,103370.0,0.23743301]
[1747529879872,0.43537931,103380.0,103370.0,0.24710662]
[1747529880440,0.43537931,103380.0,103370.0,0.23171019]
[1747529880803,0.43537931,103380.0,103370.0,0.2413837]
[1747529881252,0.43537931,103380.0,103370.0,0.23171019]
[1747529884765,0.43537931,103380.0,103370.0,0.2413837]
[1747529885669,0.43537931,103380.0,103370.0,0.23171019]
[1747529886325,0.43537931,103380.0,103370.0,0.2413837]
[1747529890070,0.43537931,103380.0,103370.0,0.23171019]
[1747529890704,0.43537931,103380.0,103370.0,0.20268909]
[1747529890912,0.42570683,103380.0,103370.0,0.22203686]
[1747529891122,0.42570683,103380.0,103370.0,0.23171056]
[1747529893563,0.42570683,103380.0,103370.0,0.24159391]
[1747529900467,0.42570683,103380.0,103370.0,0.25126752]
[1747529901455,0.40990683,103380.0,103370.0,0.24159391]
[1747529904651,0.40990683,103380.0,103370.0,0.23192031]
[1747529905141,0.40990683,103380.0,103370.0,0.03844095]
[1747529907119,0.40990683,103380.0,103370.0,0.01909308]
[1747529907318,0.42640683,103380.0,103370.0,0.02876706]
[1747529908218,0.42640683,103380.0,103370.0,0.03844095]
[1747529909639,0.42640683,103380.0,103370.0,0.01909308]
[1747529913292,0.42640683,103380.0,103370.0,0.00920973]
[1747529915804,0.42640683,103380.0,103370.0,0.02461193]
[1747529920100,0.42640683,103380.0,103370.0,0.03428582]
[1747529921533,0.42640683,103380.0,103370.0,0.03428591]
[1747529921751,0.42640683,103380.0,103370.0,0.0439598]
[1747529926080,0.42640683,103380.0,103370.0,0.03428591]
[1747529927451,0.42640683,103380.0,103370.0,0.01888371]
[1747529929966,0.42640683,103380.0,103370.0,0.0285576]
[1747529930818,0.42640683,103380.0,103370.0,0.01888371]
[1747529935251,0.22830683,103380.0,103370.0,0.22203733]
[1747529935442,0.40962683,103380.0,103370.0,0.23171103]
[1747529935636,0.02901726,103380.0,103370.0,0.26745778]
[1747529935950,0.02901735,103380.0,103370.0,0.26745778]
[1747529936172,0.23215122,103380.0,103370.0,0.24138445]
[1747529936377,0.01934468,103380.0,103370.0,0.24138445]
[1747529936573,0.02901745,103380.0,103370.0,0.25105778]
[1747529936953,0.02901735,103380.0,103370.0,0.25105778]
[1747529937280,0.23215122,103380.0,103370.0,0.23171103]
[1747529937490,0.25802427,103380.0,103370.0,0.24138464]
[1747529937691,0.23867959,103380.0,103370.0,0.00920973]
[1747529937896,0.02587239,103380.0,103370.0,0.20268946]
[1747529938140,0.23894011,103380.0,103370.0,0.23171065]
[1747529938338,0.23867884,103380.0,103370.0,0.24138407]
[1747529938538,0.23867884,103380.0,103370.0,0.22203714]
[1747529938690,0.23867884,103380.0,103370.0,0.24138426]
[1747529939086,0.24835179,103380.0,103370.0,0.01888371]
[1747529939290,0.24835245,103380.0,103370.0,0.03823139]
[1747529939719,0.24835245,103380.0,103370.0,0.04790509]
[1747529940115,0.24835245,103380.0,103370.0,0.03823139]
[1747529940544,0.24835245,103380.0,103370.0,0.23171112]
[1747529941796,0.24835245,103380.0,103370.0,0.24138482]
[1747529942857,0.24835245,103380.0,103370.0,0.23171112]
[1747529943681,0.24835245,103380.0,103370.0,0.24138482]
[1747529945320,0.24835245,103380.0,103370.0,0.23171112]
[1747529945526,0.24835245,103380.0,103370.0,0.24138482]
[1747529947699,0.23867987,103380.0,103370.0,0.22203733]
[1747529947928,0.23867987,103380.0,103370.0,0.23171112]
[1747529951822,0.23867987,103380.0,103370.0,0.24138482]
[1747529952765,0.23867987,103380.0,103370.0,0.23171112]
[1747529953845,0.23867987,103380.0,103370.0,0.24138482]
[1747529954614,0.23867987,103380.0,103370.0,0.23171112]
[1747529954822,0.25437987,103380.0,103370.0,0.23171112]
[1747529956629,0.25437987,103380.0,103370.0,0.24138482]
[1747529960290,0.22247866,103380.0,103370.0,0.35519385]
[1747529960518,0.22247866,103380.0,103370.0,0.36486689]
[1747529960723,0.02901755,103380.0,103370.0,0.36486643]
[1747529960889,0.02901755,103380.0,103370.0,0.34836643]
[1747529961318,0.03869041,103380.0,103370.0,0.34836643]
[1747529961942,0.02901755,103380.0,103370.0,0.34836643]
[1747529962208,0.03869032,103380.0,103370.0,0.34836643]
[1747529962591,0.0096723,103380.0,103370.0,0.34836643]
[1747529962888,0.01934488,103380.0,103370.0,0.34836643]
[1747529963340,0.02901755,103380.0,103370.0,0.34836643]
[1747529964624,0.03869032,103380.0,103370.0,0.34836643]
[1747529965000,0.02901755,103380.0,103370.0,0.34836643]
[1747529965347,0.03869041,103380.0,103370.0,0.34836643]
[1747529966290,0.03869041,103380.0,103370.0,0.32901968]
[1747529966657,0.24725142,103380.0,103370.0,0.3386931]
[1747529968641,0.23725142,103380.0,103370.0,0.3386931]
[1747529968849,0.24692372,103380.0,103370.0,0.3386931]
[1747529969257,0.25659677,103380.0,103370.0,0.32901968]
[1747529969490,0.25659677,103380.0,103370.0,0.31934617]
[1747529969699,0.25659677,103380.0,103370.0,0.31934654]
[1747529970934,0.25659677,103380.0,103370.0,0.10651913]
[1747529971130,0.25659677,103380.0,103370.0,0.11619302]
[1747529971131,0.24692447,103380.0,103370.0,0.11619302]
[1747529971266,0.24692447,103380.0,103370.0,0.125867]
[1747529972261,0.26192447,103380.0,103370.0,0.13554079]
[1747529972462,0.24692447,103380.0,103370.0,0.13554079]
[1747529972664,0.24692447,103380.0,103370.0,0.125867]
[1747529973827,0.24692447,103380.0,103370.0,0.1354838]
[1747529975757,0.26192447,103380.0,103370.0,0.1354838]
[1747529980634,0.22790692,103380.0,103370.0,0.10651913]
[1747529980797,0.24380692,103380.0,103370.0,0.11619302]
[1747529980994,0.24380692,103380.0,103370.0,0.12575564]
[1747529984953,0.24380692,103380.0,103370.0,0.14117164]
[1747529986622,0.24380692,103380.0,103370.0,0.15084562]
[1747529987325,0.24380692,103380.0,103370.0,0.14117173]
[1747529988008,0.24380692,103380.0,103370.0,0.15084562]
[1747529988221,0.24380692,103380.0,103370.0,0.13542962]
[1747529989951,0.24380692,103380.0,103370.0,0.12575573]
[1747529990742,0.24380692,103380.0,103370.0,0.13542962]
[1747529991535,0.24365907,103380.0,103370.0,0.11608175]
[1747529991736,0.24365907,103380.0,103370.0,0.12575573]
[1747529991959,0.24365907,103380.0,103370.0,0.15084937]
[1747529994362,0.24365907,103380.0,103370.0,0.02462948]
[1747529995359,0.24365907,103380.0,103370.0,0.03430346]
[1747529998274,0.24365907,103380.0,103370.0,0.04420194]
[1747530000425,0.24365907,103380.0,103370.0,0.02878219]
[1747530000632,0.42473907,103380.0,103370.0,0.24160941]
[1747530001096,0.24478586,103390.0,103380.0,0.20313387]
[1747530001301,0.22928586,103390.0,103380.0,0.20313396]
[1747530001509,0.22928586,103390.0,103380.0,0.00967305]
[1747530001838,0.00967248,103380.0,103370.0,0.36044428]
[1747530002040,0.00967248,103380.0,103370.0,0.35123455]
[1747530002666,0.2321515,103380.0,103370.0,0.33431142]
[1747530002925,0.23215132,103380.0,103370.0,0.35365845]
[1747530003163,0.23215132,103380.0,103370.0,0.33865854]
[1747530003431,0.23215132,103380.0,103370.0,0.34833196]
[1747530003653,0.23215132,103380.0,103370.0,0.3483314]
[1747530004038,0.23215132,103380.0,103370.0,0.35758363]
[1747530005723,0.03869031,103380.0,103370.0,0.37338363]
[1747530005943,0.04836317,103380.0,103370.0,0.37338363]
[1747530006356,0.03869031,103380.0,103370.0,0.37338363]
[1747530006567,0.23215132,103380.0,103370.0,0.37338363]
[1747530006984,0.03869031,103380.0,103370.0,0.35758363]
[1747530007219,0.02901754,103380.0,103370.0,0.35758363]
[1747530008276,0.0386904,103380.0,103370.0,0.35758363]
[1747530009161,0.02901754,103380.0,103370.0,0.37338363]
[1747530009387,0.0319,103400.0,103390.0,0.20309796]
[1747530009609,0.09024116,103410.0,103400.0,0.21276547]
[1747530009833,0.48402597,103410.0,103390.0,0.32587816]
[1747530010060,0.23833599,103400.0,103390.0,0.10656163]
[1747530010288,0.23833599,103400.0,103390.0,0.00925223]
[1747530010289,0.22866547,103400.0,103390.0,0.00925223]
[1747530010538,0.24466547,103400.0,103390.0,0.00925223]
[1747530011241,0.23499467,103400.0,103390.0,0.00925223]
[1747530012832,0.23499467,103400.0,103390.0,0.02463705]
[1747530017994,0.22532359,103400.0,103390.0,0.02463705]
[1747530019137,0.35504307,103400.0,103390.0,0.02463705]
[1747530019347,0.22532359,103400.0,103390.0,0.02463705]
[1747530020232,0.22532359,103400.0,103390.0,0.00925223]
[1747530021339,0.35504307,103400.0,103390.0,0.00925223]
[1747530021564,0.53250997,103400.0,103390.0,0.00925223]
[1747530022009,0.45235247,103400.0,103390.0,0.00925223]
[1747530022433,0.58207195,103400.0,103390.0,0.00925223]
[1747530022932,0.04147305,103380.0,103370.0,0.01153452]
[1747530023139,0.24460626,103380.0,103370.0,0.01162644]
[1747530023351,0.25427921,103380.0,103370.0,0.01162644]
[1747530023782,0.24460673,103380.0,103370.0,0.01162644]
[1747530024022,0.42556673,103380.0,103370.0,0.01162644]
[1747530024236,0.42556673,103380.0,103370.0,0.02085714]
[1747530026904,0.24460673,103380.0,103370.0,0.02085714]
[1747530027114,0.42556673,103380.0,103370.0,0.02085714]
[1747530029916,0.42556673,103380.0,103370.0,0.03624196]
[1747530036328,0.42556673,103380.0,103370.0,0.02085714]
[1747530042122,0.42556673,103380.0,103370.0,0.03624196]
[1747530043545,0.73259251,103380.0,103370.0,0.03624196]
[1747530043934,1.07259251,103380.0,103370.0,0.03624196]
[1747530045228,1.07259251,103380.0,103370.0,9.192e-05]
[1747530047226,0.94287303,103380.0,103370.0,9.192e-05]
[1747530057479,1.07259251,103380.0,103370.0,9.192e-05]
[1747530059573,5.96266599,103380.0,103370.0,9.192e-05]
[1747530060187,5.83294651,103380.0,103370.0,9.192e-05]
[1747530060389,5.97720684,103380.0,103370.0,9.192e-05]
[1747530061407,5.98720684,103380.0,103370.0,9.192e-05]
[1747530062817,5.99720684,103380.0,103370.0,9.192e-05]
[1747530063046,6.41508684,103380.0,103370.0,9.192e-05]
[1747530063875,6.10440736,103380.0,103370.0,9.192e-05]
[1747530064091,6.49541336,103380.0,103370.0,9.192e-05]
[1747530064301,6.13345336,103380.0,103370.0,9.192e-05]
[1747530064515,6.48545336,103380.0,103370.0,9.192e-05]
[1747530064738,6.49545336,103380.0,103370.0,9.192e-05]
[1747530065759,6.45640736,103380.0,103370.0,9.192e-05]
[1747530071063,6.57612684,103380.0,103370.0,9.192e-05]
[1747530075441,6.58612684,103380.0,103370.0,9.192e-05]
[1747530075871,6.59612684,103380.0,103370.0,9.192e-05]
[1747530076062,6.62324017,103380.0,103370.0,9.192e-05]
[1747530076321,6.65228717,103380.0,103370.0,9.192e-05]
[1747530077341,6.65242241,103380.0,103370.0,9.192e-05]
[1747530078373,6.62881037,103380.0,103370.0,9.192e-05]
[1747530079215,6.26681037,103380.0,103370.0,9.192e-05]
[1747530079435,6.62953037,103380.0,103370.0,9.192e-05]
[1747530080279,6.25681037,103380.0,103370.0,9.192e-05]
[1747530080491,6.82935145,103380.0,103370.0,9.192e-05]
[1747530082878,6.85674475,103380.0,103370.0,9.192e-05]
[1747530083338,6.86244669,103380.0,103370.0,9.192e-05]
[1747530085532,6.88802789,103380.0,103370.0,9.192e-05]
[1747530086423,0.59356823,103350.0,103340.0,0.07751562]
[1747530086638,6.05582513,103350.0,103340.0,0.07760755]
[1747530087129,6.08487913,103350.0,103340.0,0.07760755]
[1747530088798,6.08487913,103350.0,103340.0,9.193e-05]
[1747530088941,6.09457339,103350.0,103340.0,9.193e-05]
[1747530089618,6.10894374,103350.0,103340.0,9.193e-05]
[1747530090037,6.28876633,103350.0,103340.0,9.193e-05]
[1747530090238,6.10894374,103350.0,103340.0,9.193e-05]
[1747530094662,6.10874374,103350.0,103340.0,9.193e-05]
[1747530097058,6.52678374,103350.0,103340.0,9.193e-05]
[1747530097276,6.71114718,103350.0,103340.0,9.193e-05]
[1747530097486,6.57903351,103350.0,103340.0,9.193e-05]
[1747530097688,6.19567351,103350.0,103340.0,9.193e-05]
[1747530097896,6.01585092,103350.0,103340.0,9.193e-05]
[1747530098105,6.20166589,103350.0,103340.0,0.01579193]
[1747530098559,6.20166589,103350.0,103340.0,9.193e-05]
[1747530098756,6.20170589,103350.0,103340.0,9.193e-05]
[1747530099128,6.20166589,103350.0,103340.0,9.193e-05]
[1747530099336,6.29897529,103350.0,103340.0,9.193e-05]
[1747530099884,6.31351614,103350.0,103340.0,9.193e-05]
[1747530100100,6.34431614,103350.0,103340.0,9.193e-05]
[1747530101728,6.34423614,103350.0,103340.0,9.193e-05]